Workbook

Sheet Feuil1
A1: Elève | B1: Date de l'épreuve | C1: Note | D1: Avis | E1: Remarque
A2: Julien | B2: 2017-01-15 | C2: 10 | D2: Défavorable | E2: manque d'efforts
A3: Mathieu | B3: 2017-01-18 | C3: 15 | D3: Favorable | E3: très bien
A4: André | B4: 2017-01-21 | C4: 12 | D4: Favorable | E4: peut faire mieux

Sheet Feuil2
C1: 549755813888 | D1: 274877906944 | E1: 137438953472 | F1: 68719476736 | G1: 34359738368 | H1: 17179869184 | I1: 8589934592 | J1: 4294967296 | K1: 2147483648 | L1: 1073741824 | M1: 536870912 | N1: 268435456 | O1: 134217728 | P1: 67108864 | Q1: 33554432 | R1: 16777216 | S1: 8388608 | T1: 4194304 | U1: 2097152 | V1: 1048576 | W1: 524288 | X1: 262144 | Y1: 131072 | Z1: 65536 | AA1: 32768 | AB1: 16384 | AC1: 8192 | AD1: 4096 | AE1: 2048 | AF1: 1024 | AG1: 512 | AH1: 256 | AI1: 128 | AJ1: 64 | AK1: 32 | AL1: 16 | AM1: 8 | AN1: 4 | AO1: 2 | AP1: 1
C2: 0 | D2: 0 | E2: 0 | F2: 0 | G2: 0 | H2: 0 | I2: 0 | J2: 0 | K2: 0 | L2: 0 | M2: 1 | N2: 0 | O2: 1 | P2: 1 | Q2: 1 | R2: 0 | S2: 0 | T2: 0 | U2: 0 | V2: 1 | W2: 1 | X2: 1 | Y2: 1 | Z2: 0 | AA2: 0 | AB2: 0 | AC2: 1 | AD2: 1 | AE2: 0 | AF2: 1 | AG2: 0 | AH2: 0 | AI2: 1 | AJ2: 1 | AK2: 1 | AL2: 1 | AM2: 1 | AN2: 1 | AO2: 0 | AP2: 0
C3: =C2*C1 -> 0 | D3: 0 | E3: 0 | F3: 0 | G3: 0 | H3: 0 | I3: 0 | J3: =J2*J1 -> 0 | K3: =K2*K1 -> 0 | L3: =L2*L1 -> 0 | M3: =M2*M1 -> 536870912 | N3: =N2*N1 -> 0 | O3: =O2*O1 -> 134217728 | P3: =P2*P1 -> 67108864 | Q3: =Q2*Q1 -> 33554432 | R3: =R2*R1 -> 0 | S3: =S2*S1 -> 0 | T3: =T2*T1 -> 0 | U3: =U2*U1 -> 0 | V3: =V2*V1 -> 1048576 | W3: =W2*W1 -> 524288 | X3: =X2*X1 -> 262144 | Y3: =Y2*Y1 -> 131072 | Z3: =Z2*Z1 -> 0 | AA3: =AA2*AA1 -> 0 | AB3: =AB2*AB1 -> 0 | AC3: =AC2*AC1 -> 8192 | AD3: =AD2*AD1 -> 4096 | AE3: =AE2*AE1 -> 0 | AF3: =AF2*AF1 -> 1024 | AG3: =AG2*AG1 -> 0 | AH3: =AH2*AH1 -> 0 | AI3: =AI2*AI1 -> 128 | AJ3: 64 | AK3: 32 | AL3: 16 | AM3: 8 | AN3: 4 | AO3: 0 | AP3: =AP2*AP1 -> 0 | AQ3: =SUM(C3:AP3) -> 773731580
AI5: 128 | AJ5: 64 | AK5: 32 | AL5: 16 | AM5: 8 | AN5: 4 | AO5: 2 | AP5: 1
AI6: 0 | AJ6: 0 | AK6: 1 | AL6: 1 | AM6: 0 | AN6: 0 | AO6: 0 | AP6: 1
AI7: =AI6*AI5 -> 0 | AJ7: 0 | AK7: 32 | AL7: 16 | AM7: 0 | AN7: 0 | AO7: 0 | AP7: =AP6*AP5 -> 1 | AQ7: =SUM(AI7:AP7) -> 49
AI9: 128 | AJ9: 64 | AK9: 32 | AL9: 16 | AM9: 8 | AN9: 4 | AO9: 2 | AP9: 1
AI10: 0 | AJ10: =AB2 -> 0 | AK10: 1 | AL10: =AD2 -> 1 | AM10: 0 | AN10: 1 | AO10: 0 | AP10: =AH2 -> 0
AI11: =AI10*AI9 -> 0 | AJ11: 0 | AK11: 32 | AL11: 16 | AM11: 0 | AN11: 4 | AO11: 0 | AP11: =AP10*AP9 -> 0 | AQ11: =SUM(AI11:AP11) -> 52
AI13: 128 | AJ13: 64 | AK13: 32 | AL13: 16 | AM13: 8 | AN13: 4 | AO13: 2 | AP13: 1
AI14: =S2 -> 0 | AJ14: =T2 -> 0 | AK14: 0 | AL14: 1 | AM14: 1 | AN14: 1 | AO14: 1 | AP14: 0
AI15: =AI14*AI13 -> 0 | AJ15: 0 | AK15: 0 | AL15: 16 | AM15: 8 | AN15: 4 | AO15: 2 | AP15: =AP14*AP13 -> 0 | AQ15: =SUM(AI15:AP15) -> 30
AI17: 128 | AJ17: 64 | AK17: 32 | AL17: 16 | AM17: 8 | AN17: 4 | AO17: 2 | AP17: 1
AI18: 0 | AJ18: =L2 -> 0 | AK18: 1 | AL18: 0 | AM18: =O2 -> 1 | AN18: 1 | AO18: 1 | AP18: =R2 -> 0
AI19: =AI18*AI17 -> 0 | AJ19: 0 | AK19: 32 | AL19: 0 | AM19: 8 | AN19: 4 | AO19: 2 | AP19: =AP18*AP17 -> 0 | AQ19: =SUM(AI19:AP19) -> 46
AI21: 128 | AJ21: 64 | AK21: 32 | AL21: 16 | AM21: 8 | AN21: 4 | AO21: 2 | AP21: 1
AI22: =C2 -> 0 | AJ22: 0 | AK22: 0 | AL22: 0 | AM22: 0 | AN22: 0 | AO22: 0 | AP22: 0
AI23: =AI22*AI21 -> 0 | AJ23: 0 | AK23: 0 | AL23: 0 | AM23: 0 | AN23: 0 | AO23: 0 | AP23: =AP22*AP21 -> 0 | AQ23: =SUM(AI23:AP23) -> 0
